Cogmind - Beta 12 X4 @@@ ROGUE MODE // 2022.12.22 @ 13:32:21 Player: Lunatic Blue Result: Destroyed by Y-64 Sentinel with KE Penetrator Performance ------------- Evolutions (4) 2000 Regions Visited (15) 3000 Robots Destroyed (243) 1215 Value Destroyed (8294) 8294 Prototype IDs (6) 120 Alien Tech Used (0) 0 Bonus (6307) 6307 TOTAL SCORE: 20936 Bonus ------- High Alert Combat Kills 2124 Follower Combat Kills 2569 Entered Garrisons 600 Used RIF Installer 1500 Built Enhanced Grunts 300 Met R17 at Cetus 500 Friendly Fire -1286 Cogmind --------- Core Integrity 0/850 Matter 232/300 Energy 410/410 System Corruption 78% Temperature Hot (226) Movement Treading (160) Location -6/Archives Parts ------- > --- POWER (2) -------- Light Fission Core Quantum Reactor > --- PROPULSION (4) --- Centrium Heavy Treads Centrium Heavy Treads > --- UTILITY (6) ------ High-capacity Storage Unit Machine Analyzer Advanced Transmission Jammer Centrium Medium Armor Plating Improved Hacking Suite Relay Coupler [Hunter] (18) > --- WEAPON (3) ------- Advanced KE Penetrator Advanced KE Penetrator Advanced KE Penetrator > --- INVENTORY (20) --- Fission Core Centrium Heavy Treads Centrium Heavy Treads Advanced Heat Sink Long-range Terrain Scanner Phase Shifter Centrium Medium Armor Plating Centrium Medium Armor Plating Centrium Medium Armor Plating Centrium Medium Armor Plating Authchip [Weapon] Shock Rifle Advanced KE Penetrator Advanced KE Penetrator Advanced KE Penetrator Remote Datajack Remote Datajack Great Axe Peak State ------------ > --- POWER ------------ Light Fission Core Quantum Reactor > --- PROPULSION ------- Centrium Heavy Treads Centrium Heavy Treads > --- UTILITY ---------- High-capacity Storage Unit Machine Analyzer Advanced Transmission Jammer Centrium Medium Armor Plating Improved Hacking Suite Relay Coupler [Hunter] > --- WEAPON ----------- Advanced KE Penetrator Advanced KE Penetrator Advanced KE Penetrator > --- INVENTORY -------- Fission Core Centrium Heavy Treads Centrium Heavy Treads Advanced Heat Sink Long-range Terrain Scanner Phase Shifter Centrium Medium Armor Plating Centrium Medium Armor Plating Centrium Medium Armor Plating Centrium Medium Armor Plating Authchip [Weapon] Shock Rifle Advanced KE Penetrator Advanced KE Penetrator Advanced KE Penetrator Remote Datajack Remote Datajack Great Axe [Rating: 117] Favorites ----------- Power Light Nuclear Core Engine Improved Deuterium Engine Power Core Light Nuclear Core Reactor Antimatter Reactor Propulsion Light Treads Treads Light Treads Leg Flexi-carbon Leg Wheel Wheel Hover Unit Gravmag Array Utility Large Storage Unit Device Seismic Detector Storage Large Storage Unit Processor Machine Analyzer Hackware Relay Coupler [Grunt] Protection Hardened Heavy Armor Plating Weapon Minigun Energy Gun Lightning Gun Energy Cannon Advanced Beam Cannon Ballistic Gun Minigun Ballistic Cannon Advanced Assault Cannon Launcher Improved Grenade Launcher Special Weapon Remote Datajack Impact Weapon Mace Slashing Weapon Ripper Build | -11 -10 -10 -9 -9 -9 -8 -8 -7 -7 -6 -6 -6 -6 -6 -6 ------- Run | Scr Mat Min Mat Sto Gar Mat Gar Fac Gar Fac Was Fac Ext Cet Arc Slots Evolved 8 | . . . 2 . . 2 . 2 . 2 . . . . . Power 1 | . . . . . . . . . . 1 . . . . . Propulsion 2 | . . . . . . 1 . . . 1 . . . . . Utility 4 | . . . 1 . . 1 . 2 . . . . . . . Weapon 1 | . . . 1 . . . . . . . . . . . . Parts Attached 250 | 8 8 1 24 4 10 40 21 5 20 5 2 35 51 16 . Power 26 | 1 . . 2 1 . 1 1 . 4 2 . 5 7 2 . Engine 15 | 1 . . 1 . . 1 . . 3 . . 2 7 . . Core 9 | . . . 1 1 . . 1 . . 2 . 3 . 1 . Reactor 2 | . . . . . . . . . 1 . . . . 1 . Propulsion 52 | 2 . 1 6 2 2 7 5 . 3 1 1 6 13 3 . Treads 36 | 1 . . 5 2 2 7 5 . 3 1 1 2 5 2 . Leg 5 | . . . . . . . . . . . . . 4 1 . Wheel 7 | 1 . 1 1 . . . . . . . . . 4 . . Hover 4 | . . . . . . . . . . . . 4 . . . Flight . | . . . . . . . . . . . . . . . . Utility 60 | 2 1 . 5 1 2 8 2 5 8 . . 12 12 2 . Device 25 | 1 . . 2 . 1 2 . 4 5 . . 6 3 1 . Storage 7 | 1 1 . . . . 2 . . . . . 2 1 . . Processor 3 | . . . 1 1 . . 1 . . . . . . . . Hackware 5 | . . . . . . . . . 2 . . 1 2 . . Protection 20 | . . . 2 . 1 4 1 1 1 . . 3 6 1 . Artifact . | . . . . . . . . . . . . . . . . Weapon 112 | 3 7 . 11 . 6 24 13 . 5 2 1 12 19 9 . Energy Gun 15 | 3 4 . . . . . . . . . . 2 4 2 . Energy Cannon 9 | . . . 3 . . . . . . . . 4 2 . . Ballistic Gun 38 | . 2 . 7 . 3 11 5 . 2 . . . 2 6 . Ballistic Cannon 9 | . . . . . . 4 2 . 1 . . 1 1 . . Launcher 16 | . . . 1 . 3 9 2 . 1 . . . . . . Special Weapon 9 | . . . . . . . . . . 1 1 2 5 . . Impact Weapon 1 | . 1 . . . . . . . . . . . . . . Slashing Weapon 15 | . . . . . . . 4 . 1 1 . 3 5 1 . Piercing Weapon . | . . . . . . . . . . . . . . . . Special Melee Weapon . | . . . . . . . . . . . . . . . . Unidentified Prototypes 6 | . . . 1 . . 1 . . . . . 1 . 3 . Corrupted Parts 6 | . . . . . . . . . . . . . . 6 . System Corruption 50 | . . . . . . . . . . . . . . 50 . Parts Lost 54 | . 2 . 1 1 . 3 7 . 5 . . 15 19 1 . Power 10 | . . . . . . 1 1 . 1 . . 4 3 . . Propulsion 15 | . . . . . . 1 3 . 2 . . 2 7 . . Utility 11 | . . . . 1 . . 1 . 1 . . 3 4 1 . Weapon 18 | . 2 . 1 . . 1 2 . 1 . . 6 5 . . Highest Loss Streak 11 | . 1 . 1 1 . 1 4 . 4 . . 10 11 1 . To Critical Strikes 1 | . . . . . . . . . . . . 1 . . . Average Slot Usage (%) 92 | . 99 100 99 98 99 97 89 88 90 100 95 78 83 83 86 Engine 4 | . 14 14 4 . . 2 6 . 1 . . 1 9 1 . Core 4 | . . . 6 9 11 6 2 7 2 6 6 8 . . 6 Treads 17 | . 14 14 11 22 21 26 27 23 20 26 22 5 6 11 13 Wheel 2 | . 14 14 10 . . . . . . . . . 2 . . Hover 1 | . . . . . . . . . . . . 5 6 . . Device 6 | . 14 14 11 9 . . . 11 14 6 6 7 4 3 6 Storage 9 | . 14 14 11 11 11 16 9 7 7 6 6 6 6 6 6 Processor 6 | . . . 5 1 11 9 9 7 7 6 6 6 6 6 6 Hackware 4 | . . . . . . . . . 2 13 13 13 13 13 13 Protection 6 | . . . 5 11 10 8 9 7 6 6 6 4 6 9 6 Energy Gun 2 | . 22 . . . . . . . . . . 8 3 1 . Energy Cannon 1 | . . . 7 . . . . . . . . . . . . Ballistic Gun 13 | . 4 28 25 33 32 24 9 . 6 13 13 1 . 17 20 Ballistic Cannon 2 | . . . . . . 1 8 15 8 . . . . . . Slashing Weapon 2 | . . . . . . . 7 7 5 6 . 1 7 . . Naked Turns . | . . . . . . . . . . . . . . . . Heaviest Build 93 | 15 30 30 43 43 42 68 68 65 73 66 68 88 90 93 93 Greatest Support 160 | 20 10 10 40 43 43 63 60 60 76 96 126 138 84 160 160 Greatest Overweight (x) 23 | 1 2 2 3 1 1 1 1 1 21 . . 2 23 1 . Average Overweight (x) . | . 1 2 2 . . . . . . . . . 1 . . Largest Inventory Capacity 20 | 8 15 15 15 15 15 15 15 15 15 15 15 20 20 20 20 Average Capacity 15 | 6 13 15 15 15 15 15 15 15 15 15 15 15 16 20 20 Most Carried 20 | 6 15 15 15 15 15 15 15 15 15 14 15 17 16 20 20 Average Carried 13 | 2 11 14 14 14 14 14 13 15 14 13 14 11 9 18 20 Final Capacity 20 | 8 15 15 15 15 15 15 15 15 15 15 15 10 20 20 20 Final Carried 20 | 4 15 15 15 15 15 15 15 15 15 14 15 8 14 20 20 Class Distribution -------------------- 28% | Scavenger-Mutant 26% | Tank 21% | Mutant 7% | Scavenger-Tank 6% | Bothacker-Mutant 3% | Scavenger-Gunner 3% | Commander-Mutant Dominant Class ---------------- Mutant | -10/Materials Mutant | -10/Mines Scavenger-Mutant | -9/Materials Tank | -9/Storage Tank | -9/Garrison Tank | -8/Materials Scavenger-Mutant | -8/Garrison Scavenger-Mutant | -7/Factory Scavenger-Mutant | -7/Garrison Bothacker-Mutant | -6/Factory Bothacker-Mutant | -6/Waste Mutant | -6/Factory Scavenger-Mutant | -6/Extension Scavenger-Tank | -6/Cetus Scavenger-Tank | -6/Archives Resources | -11 -10 -10 -9 -9 -9 -8 -8 -7 -7 -6 -6 -6 -6 -6 -6 ----------- Run | Scr Mat Min Mat Sto Gar Mat Gar Fac Gar Fac Was Fac Ext Cet Arc Matter Collected 6591 | 216 145 22 817 159 648 1190 757 . 714 57 198 408 826 434 . Remotely 255 | . . . . . 124 131 . . . . . . . . . Salvage Created 9157 | 29 741 . 1408 170 873 2030 769 . 618 41 254 693 1251 280 . Parts 516 | 5 52 . 97 9 61 116 45 . 36 4 . 30 51 10 . Haulers Intercepted 14 | . 1 . 5 . . 4 . . . . . . 4 . . Recyclers Shooed 7 | . . 1 4 . . 1 . . . . . . 1 . . Parts Field Recycled . | . . . . . . . . . . . . . . . . Retrieved Matter . | . . . . . . . . . . . . . . . . Parts Self-Destructed . | . . . . . . . . . . . . . . . . Prevented . | . . . . . . . . . . . . . . . . Kills | -11 -10 -10 -9 -9 -9 -8 -8 -7 -7 -6 -6 -6 -6 -6 -6 ------- Run | Scr Mat Min Mat Sto Gar Mat Gar Fac Gar Fac Was Fac Ext Cet Arc Combat Hostiles Destroyed 176 | . 14 . 16 3 33 41 25 . 17 . 1 10 12 4 . Melee 13 | . . . . . . . 5 . 4 . . 3 1 . . Guns 95 | . 13 . 7 3 23 19 10 . 5 . 1 2 8 4 . Cannons 24 | . . . 7 . . 1 6 . 6 . . 1 3 . . AOE 39 | . . . 2 . 10 21 4 . 2 . . . . . . Classes Destroyed 17 | 1 6 . 3 . . 4 1 . 1 . 1 . . . . Worker 15 | . 2 . 4 . . 5 . . . 1 . 3 . . . Builder 13 | . . . 3 . . 4 . . . 1 . 2 3 . . Tunneler 2 | 1 . . . . . 1 . . . . . . . . . Hauler 14 | . 1 . 5 . . 4 . . . . . . 4 . . Recycler 10 | . . . 6 . . 2 . . . . . . 2 . . Operator 5 | . 2 . 1 . . 2 . . . . . . . . . Watcher 9 | . 3 . 3 . . 2 . . . . . . 1 . . Swarmer 45 | . 3 . 8 . 16 3 6 . 5 . . 1 3 . . Cutter 5 | . . . . . . . 3 . 2 . . . . . . Grunt 83 | . 11 . 4 . 15 28 11 . 5 . . 2 6 1 . Brawler 1 | . . . . . . 1 . . . . . . . . . Duelist 7 | . . . . . . 2 . . 2 . . 1 2 . . Protector 1 | . . . . . . 1 . . . . . . . . . Sentry 25 | . . . 5 3 2 5 5 . 2 . . 2 1 . . Hunter 3 | . . . . . . 1 . . . . . 2 . . . Programmer 3 | . . . . . . . . . 1 . . 2 . . . Compactor 1 | . . . . . . . . . . . 1 . . . . Cetus Guard 3 | . . . . . . . . . . . . . . 3 . Guerrilla 1 | . . . . . . . . . . . . . 1 . . Best Kill Streak 14 | 1 4 . 7 3 5 14 3 . 4 1 1 3 6 2 . Combat Bots Only 8 | . 3 . 3 3 5 8 3 . 4 . 1 3 6 2 . Max Kills in Single Turn 4 | 1 1 . 2 1 4 4 2 . 2 1 1 1 2 1 . Gunslinging 1 | . . . . . 1 . . . . . . . . . . Exploded 4 | . . . 2 . 4 3 2 . 2 . . . . . . Melee 1 | . . . . . . . 1 . 1 . . 1 1 . . Uniques/NPCs Destroyed 1 | . . . . . . . . . 1 . . . . . . HV-R5K (-7/Garrison) Combat | -11 -10 -10 -9 -9 -9 -8 -8 -7 -7 -6 -6 -6 -6 -6 -6 -------- Run | Scr Mat Min Mat Sto Gar Mat Gar Fac Gar Fac Was Fac Ext Cet Arc Damage Taken 14218 | . 436 . 544 153 632 1493 2299 110 1609 . . 3000 3216 512 214 Core 1595 | . 108 . 81 . 120 100 197 . 122 . . 383 384 55 45 Absorbed by Shields 323 | . . . . . . . . 38 148 . . . . 137 . Regen/Repaired (Parts) 324 | . . . . 34 . 290 . . . . . . . . . Core Remaining (%) 66 | 100 . 56 . . 49 . 46 . 82 . . . . . . Volleys Fired 480 | 1 52 2 72 10 47 77 53 2 27 1 15 30 66 20 5 Largest 3 | 2 2 2 3 3 3 3 3 2 3 1 2 2 3 3 3 Hottest 206 | 80 80 40 136 75 75 96 144 96 132 10 70 110 206 121 105 Shots Fired 1060 | 2 100 4 197 31 120 201 113 4 53 1 23 50 100 46 15 Gun 848 | 2 100 4 159 31 110 177 67 . 20 . 16 41 60 46 15 Cannon 143 | . . . 37 . . 2 41 4 30 . . 9 20 . . Launcher 41 | . . . 1 . 10 22 5 . 3 . . . . . . Special 28 | . . . . . . . . . . 1 7 . 20 . . Kinetic 752 | . 2 4 159 31 110 179 108 4 50 . 16 16 19 39 15 Thermal 127 | . 34 . 37 . . . . . . . . . 51 5 . Explosive 41 | . . . 1 . 10 22 5 . 3 . . . . . . Electromagnetic 112 | 2 64 . . . . . . . . . . 34 10 2 . Robot Hit Streak 21 | 1 13 2 12 10 11 17 13 3 9 5 6 12 21 5 6 Robot Miss Streak 8 | 1 3 2 8 2 3 3 8 1 3 . 2 2 7 4 3 Penetration Max 1 | . . . . . . . . . 1 . . 1 1 . 1 Secondary Targets 16 | . . . . . 6 6 . . . . . 1 1 2 . Max Gunslinging Chain 1 | . . . . . 1 1 . . . . . 1 1 1 . Shots Hit Robots 730 | 1 67 2 98 19 59 129 89 3 41 3 16 55 110 28 10 Core Hits 405 | 1 35 1 46 6 39 115 37 . 29 2 4 16 53 16 5 Critical Kills 7 | . . . . . 1 . 2 . . . . 1 2 1 . Critical Parts Destroyed 9 | . . . 1 . . 3 . . . . . . 4 1 . Critical Strikes 32 | . 3 . 1 . 1 3 7 . 1 . . 4 9 3 . Burn 1 | . . . . . . . . . . . . . . 1 . Destroy 16 | . . . 1 . 1 3 2 . . . . 1 6 2 . Blast 1 | . . . . . . . . . 1 . . . . . . Corrupt 4 | . 3 . . . . . . . . . . 1 . . . Sever 10 | . . . . . . . 5 . . . . 2 3 . . Melee Attacks 155 | . . . . . . . 49 . 37 2 . 25 39 3 . Impact . | . . . . . . . . . . . . . . . . Slashing 155 | . . . . . . . 49 . 37 2 . 25 39 3 . Piercing . | . . . . . . . . . . . . . . . . Sneak Attacks 16 | . . . . . . . . . . 2 . 5 9 . . Combat Hostiles . | . . . . . . . . . . . . . . . . Follow-up Attacks 11 | . . . . . . . 8 . . . . . 3 . . Damage Inflicted 20722 | 13 901 26 1810 317 1765 5100 2513 73 1801 141 291 1875 3189 621 286 Guns 9710 | 13 879 26 1252 317 1039 2011 717 . 431 . 291 604 1223 621 286 Cannons 2215 | . . . 459 . . 52 499 73 560 . . 232 340 . . Explosions 5091 | . 22 . 95 . 726 3036 580 . 521 . . 111 . . . Melee 3692 | . . . . . . . 717 . 287 141 . 928 1619 . . Ramming 14 | . . . 4 . . 1 . . 2 . . . 7 . . Kinetic 8675 | . 12 26 1252 317 1039 2063 1216 73 991 . 291 295 253 561 286 Thermal 2042 | . 294 . 459 . . . . . . . . 111 1118 60 . Explosive 4958 | . . . 95 . 726 3036 580 . 521 . . . . . . Electromagnetic 1341 | 13 595 . . . . . . . . . . 541 192 . . Impact . | . . . . . . . . . . . . . . . . Slashing 3692 | . . . . . . . 717 . 287 141 . 928 1619 . . Piercing . | . . . . . . . . . . . . . . . . Highest Corruption 78 | . . . . 2 2 . . 2 4 . 24 28 28 78 78 Average Corruption 20 | . . . . 2 2 . . 2 2 . 12 25 28 70 78 Corruption Purged . | . . . . . . . . . . . . . . . . Corruption Blocked . | . . . . . . . . . . . . . . . . Effects 225 | . . . . 3 9 . . 4 16 . 8 52 90 40 3 Message Errors 54 | . . . . . 1 . . 1 5 . 1 11 23 11 1 Matter Fused 44 | . . . . . 1 . . 1 4 . 3 8 17 9 1 Heat Flow Errors 25 | . . . . 1 . . . . 2 . . 10 7 5 . Energy Discharges 28 | . . . . . 2 . . 1 . . 2 7 13 3 . Parts Rejected 5 | . . . . . 1 . . . . . . 2 1 1 . Data Loss (minor) 29 | . . . . 1 3 . . 1 2 . . 7 10 5 . Data Loss (major) 9 | . . . . . . . . . 1 . . 1 5 2 . Misfires 10 | . . . . 1 . . . . 1 . 1 2 4 1 . Alerts 3 | . . . . . . . . . 1 . . . 2 . . Misdirections 7 | . . . . . . . . . . . . 1 5 . 1 Weapon Failures 11 | . . . . . 1 . . . . . 1 3 3 3 . Overload Shots . | . . . . . . . . . . . . . . . . Overflow Damage 488 | . . . . . 41 109 49 15 49 . . 143 82 . . Projectiles 20 | . . . . . . . . 15 5 . . . . . . Explosions 216 | . . . . . 41 109 42 . . . . 24 . . . Melee 252 | . . . . . . . 7 . 44 . . 119 82 . . Knockbacks 11 | . . . . . . . . 1 9 . . . 1 . . Impact . | . . . . . . . . . . . . . . . . Kinetic 11 | . . . . . . . . 1 9 . . . 1 . . Secondary . | . . . . . . . . . . . . . . . . Self-Inflicted Damage 305 | . 40 . . . 11 91 33 . 93 . . 37 . . . Shots 11 | . 1 . . . 2 3 1 . 3 . . 1 . . . Rammed 6 | . . . 1 . . 2 . . 2 . . . 1 . . Targets Rammed 6 | . . . 1 . . 2 . . 2 . . . 1 . . Kicked . | . . . . . . . . . . . . . . . . Crushed . | . . . . . . . . . . . . . . . . Highest Temperature 630 | 18 138 . 324 164 157 270 630 45 189 . . 262 437 417 217 Average Temperature 104 | 12 39 . 100 67 52 74 158 27 46 . . 81 148 167 81 Received Heat Transfer 3570 | . 195 . 138 27 162 684 990 . 383 . . 195 747 4 45 Effects 28 | . . . . . . . 15 . . . . . 5 8 . Shutdowns 9 | . . . . . . . 3 . . . . . 2 4 . Energy Bleed 4 | . . . . . . . 3 . . . . . 1 . . Interference 7 | . . . . . . . 5 . . . . . 1 1 . Matter Decay 3 | . . . . . . . 1 . . . . . 1 1 . Short Circuit 2 | . . . . . . . 1 . . . . . . 1 . Damage (minor) 2 | . . . . . . . 1 . . . . . . 1 . Damage (core) 1 | . . . . . . . 1 . . . . . . . . Siege Activations . | . . . . . . . . . . . . . . . . Robots Corrupted 5 | . 1 . . . . . . . . . . 4 . . . Combat Hostiles 5 | . 1 . . . . . . . . . . 4 . . . Parts Fried 10 | . 2 . . . . . . . . . . 6 . 2 . Impact Corruptions . | . . . . . . . . . . . . . . . . Robots Melted . | . . . . . . . . . . . . . . . . Combat Hostiles . | . . . . . . . . . . . . . . . . Parts Melted 5 | . 1 . 2 . . . 1 . . . . . 1 . . Heat Transferred 4179 | . 675 . 814 . . . . . . . . 100 2405 185 . Parts Sabotaged . | . . . . . . . . . . . . . . . . Parts Stolen . | . . . . . . . . . . . . . . . . Parts Stripped . | . . . . . . . . . . . . . . . . Power Chain Reactions 2 | . 1 . . . . . . . . . . 1 . . . Missiles Intercepted . | . . . . . . . . . . . . . . . . Alert | -11 -10 -10 -9 -9 -9 -8 -8 -7 -7 -6 -6 -6 -6 -6 -6 ------- Run | Scr Mat Min Mat Sto Gar Mat Gar Fac Gar Fac Was Fac Ext Cet Arc Peak Influence 1679 | 5 194 16 447 152 1004 1332 1679 881 1663 932 333 279 402 625 363 Initial 881 | . 3 16 5 39 98 489 865 881 578 872 326 233 93 124 250 Average 538 | . 106 16 127 56 624 817 1232 833 1078 900 330 167 245 408 279 Maximum Alert Level 5 | . . . 2 . 3 4 5 3 5 3 1 1 2 2 1 Low Security (%) 31 | 100 100 100 80 100 5 . . . . . . 60 27 7 . Level 1 18 | . . . 6 . 13 . . . . . 100 39 72 44 100 Level 2 12 | . . . 13 . 38 32 . 2 6 . . . . 47 . Level 3 24 | . . . . . 42 56 24 97 48 100 . . . . . Level 4 12 | . . . . . . 10 70 . 41 . . . . . . Level 5 . | . . . . . . . 5 . 3 . . . . . . High Security . | . . . . . . . . . . . . . . . . Max Security . | . . . . . . . . . . . . . . . . Squads Dispatched 26 | . 4 . 2 2 . 8 . 1 . 1 . 4 4 . . Investigation 9 | . 2 . 1 . . 2 . . . . . 1 3 . . Extermination 3 | . . . . . . . . . . . . 3 . . . Reinforcement 8 | . 2 . 1 . . 3 . . . 1 . . 1 . . Assault 3 | . . . . . . 2 . 1 . . . . . . . Garrison 3 | . . . . 2 . 1 . . . . . . . . . Intercept . | . . . . . . . . . . . . . . . . Searches Triggered . | . . . . . . . . . . . . . . . . Construction Impeded 1 | . . . . . . . . . . . . . 1 . . Haulers Reinforced . | . . . . . . . . . . . . . . . . Active Scanning Responses . | . . . . . . . . . . . . . . . . Cargo Convoy Interrupts . | . . . . . . . . . . . . . . . . Stealth | -11 -10 -10 -9 -9 -9 -8 -8 -7 -7 -6 -6 -6 -6 -6 -6 --------- Run | Scr Mat Min Mat Sto Gar Mat Gar Fac Gar Fac Was Fac Ext Cet Arc Distress Signals 11 | . 1 . 3 . . 2 . . . . . . 3 2 . Communications Jammed . | . . . . . . . . . . . . . . . . Distress Signals . | . . . . . . . . . . . . . . . . Times Spotted 309 | . 23 3 31 3 35 59 27 7 29 2 5 16 45 18 6 Peak Tracking Total 8 | . 3 2 5 2 4 7 4 3 5 1 3 5 8 5 1 Tactical Retreats 10 | . 2 . 1 . 1 2 1 . . . . 2 1 . . Traps | -11 -10 -10 -9 -9 -9 -8 -8 -7 -7 -6 -6 -6 -6 -6 -6 ------- Run | Scr Mat Min Mat Sto Gar Mat Gar Fac Gar Fac Was Fac Ext Cet Arc Traps Triggered 23 | . 2 . . 1 1 . 6 1 6 1 . 2 3 . . Indirectly . | . . . . . . . . . . . . . . . . Trap Hack Attempts . | . . . . . . . . . . . . . . . . Triggered . | . . . . . . . . . . . . . . . . Disarmed . | . . . . . . . . . . . . . . . . Reprogrammed . | . . . . . . . . . . . . . . . . Reused . | . . . . . . . . . . . . . . . . Traps Extracted . | . . . . . . . . . . . . . . . . Installed . | . . . . . . . . . . . . . . . . Triggered . | . . . . . . . . . . . . . . . . Machines | -11 -10 -10 -9 -9 -9 -8 -8 -7 -7 -6 -6 -6 -6 -6 -6 ---------- Run | Scr Mat Min Mat Sto Gar Mat Gar Fac Gar Fac Was Fac Ext Cet Arc Machines Disabled 28 | . . . 3 1 1 7 2 . 3 . . 1 2 6 2 Max in Single Turn 2 | . . . 2 1 1 2 1 . 1 . . 1 1 1 1 Garrison Relay 7 | . . . . . 1 . 3 . 3 . . . . . . Machines Sabotaged . | . . . . . . . . . . . . . . . . Overloaded Fab Kills . | . . . . . . . . . . . . . . . . Hacking | -11 -10 -10 -9 -9 -9 -8 -8 -7 -7 -6 -6 -6 -6 -6 -6 --------- Run | Scr Mat Min Mat Sto Gar Mat Gar Fac Gar Fac Was Fac Ext Cet Arc Machines Accessed 45 | . 5 . 7 2 3 8 4 2 1 1 . 2 9 1 . Terminals 34 | . 4 . 6 . 3 4 4 . 1 1 . 1 9 1 . Fabricators 1 | . . . . . . . . . . . . 1 . . . Repair Stations 3 | . . . . 1 . 1 . 1 . . . . . . . Recycling Units 4 | . 1 . 1 . . 2 . . . . . . . . . Scanalyzers . | . . . . . . . . . . . . . . . . Garrison Access 3 | . . . . 1 . 1 . 1 . . . . . . . Total Hacks 95 | . 13 . 19 3 5 19 8 3 3 2 . 4 15 1 . Successful 43 | . 3 . 9 3 1 12 4 2 1 1 . 2 5 . . Failed 52 | . 10 . 10 . 4 7 4 1 2 1 . 2 10 1 . Catastrophic 12 | . 1 . 1 . . 2 . 1 . . . 1 5 1 . Database Lockouts . | . . . . . . . . . . . . . . . . Manual 28 | . 8 . 10 . . 7 . . . . . 2 . 1 . Terminals 74 | . 11 . 17 . 5 11 8 . 3 2 . 1 15 1 . Fabricators 3 | . . . . . . . . . . . . 3 . . . Repair Stations 9 | . . . . 2 . 5 . 2 . . . . . . . Recycling Units 6 | . 2 . 2 . . 2 . . . . . . . . . Scanalyzers . | . . . . . . . . . . . . . . . . Garrison Access 3 | . . . . 1 . 1 . 1 . . . . . . . Terminal Hacks 27 | . 2 . 8 . 1 5 4 . 1 1 . . 5 . . Record 1 | . . . . . . . . . . . . . 1 . . Part Schematic 1 | . . . . . . . . . . 1 . . . . . Robot Analysis 1 | . . . 1 . . . . . . . . . . . . Open Door 6 | . . . . . 1 . 1 . . . . . 4 . . Branch Access Points 2 | . . . 1 . . 1 . . . . . . . . . Emergency Access Points 2 | . . . . . . . 1 . 1 . . . . . . Recycling Unit Index 1 | . . . 1 . . . . . . . . . . . . Alert Level 1 | . . . 1 . . . . . . . . . . . . Unreport Threat 5 | . 1 . 3 . . 1 . . . . . . . . . Recall Investigation 1 | . . . . . . 1 . . . . . . . . . Hauler Manifests 1 | . . . . . . 1 . . . . . . . . . Zone Layout 3 | . 1 . 1 . . 1 . . . . . . . . . Garrison Registry 1 | . . . . . . . 1 . . . . . . . . Security Stations 1 | . . . . . . . 1 . . . . . . . . Fabricator Hacks 1 | . . . . . . . . . . . . 1 . . . Load Schematic 1 | . . . . . . . . . . . . 1 . . . Repair Station Hacks 7 | . . . . 2 . 4 . 1 . . . . . . . Scan Component 4 | . . . . 1 . 2 . 1 . . . . . . . Repair 3 | . . . . 1 . 2 . . . . . . . . . Recycling Unit Hacks . | . . . . . . . . . . . . . . . . Scanalyzer . | . . . . . . . . . . . . . . . . Garrison Access Hacks 3 | . . . . 1 . 1 . 1 . . . . . . . Unlock Access 3 | . . . . 1 . 1 . 1 . . . . . . . Unauthorized Hacks 5 | . 1 . 1 . . 2 . . . . . 1 . . . Terminals . | . . . . . . . . . . . . . . . . Fabricators 1 | . . . . . . . . . . . . 1 . . . Recompile 1 | . . . . . . . . . . . . 1 . . . Repair Stations . | . . . . . . . . . . . . . . . . Recycling Units 4 | . 1 . 1 . . 2 . . . . . . . . . Tunnel 4 | . 1 . 1 . . 2 . . . . . . . . . Scanalyzers . | . . . . . . . . . . . . . . . . Garrison Access . | . . . . . . . . . . . . . . . . Data Cores Recovered 1 | . . . 1 . . . . . . . . . . . . Used 1 | . . . 1 . . . . . . . . . . . . Hacking Detections 35 | . 4 . 6 1 3 6 3 2 1 1 . 1 6 1 . Full Trace Events 4 | . . . . . 1 . . . . . . . 3 . . Feedback Events . | . . . . . . . . . . . . . . . . Feedback Blocked . | . . . . . . . . . . . . . . . . Robot Schematics Acquired . | . . . . . . . . . . . . . . . . Robots Built . | . . . . . . . . . . . . . . . . Authchips . | . . . . . . . . . . . . . . . . Time . | . . . . . . . . . . . . . . . . Total Robot Build Rating . | . . . . . . . . . . . . . . . . Part Schematics Acquired 1 | . . . . . . . . . . 1 . . . . . Parts Built . | . . . . . . . . . . . . . . . . Authchips . | . . . . . . . . . . . . . . . . Time . | . . . . . . . . . . . . . . . . Total Part Build Rating . | . . . . . . . . . . . . . . . . Parts Repaired 3 | . . . . 1 . 2 . . . . . . . . . Time 114 | . . . . 38 . 76 . . . . . . . . . Parts Recycled . | . . . . . . . . . . . . . . . . Recycled Matter . | . . . . . . . . . . . . . . . . Retrieved Matter . | . . . . . . . . . . . . . . . . Retrieved Components . | . . . . . . . . . . . . . . . . Parts Scanalyzed . | . . . . . . . . . . . . . . . . Part Schematics Acquired . | . . . . . . . . . . . . . . . . Parts Damaged . | . . . . . . . . . . . . . . . . Bothacking | -11 -10 -10 -9 -9 -9 -8 -8 -7 -7 -6 -6 -6 -6 -6 -6 ------------ Run | Scr Mat Min Mat Sto Gar Mat Gar Fac Gar Fac Was Fac Ext Cet Arc Used RIF Installer 3 | . . . . . 1 . 1 . 1 . . . . . . Signal Jammer 1 | . . . . . . . . . 1 . . . . . . Zone Cloak 1 | . . . . . . . 1 . . . . . . . . Robots Hacked 12 | . . . . . . . . . . 1 6 . 5 . . Non-combat 1 | . . . . . . . . . . 1 . . . . . Combat 11 | . . . . . . . . . . . 6 . 5 . . Robot Hacks Applied 13 | . . . . . . . . . . 1 6 . 6 . . ignore_targets 6 | . . . . . . . . . . . 6 . . . . disrupt_area 1 | . . . . . . . . . . . . . 1 . . overload_power 1 | . . . . . . . . . . . . . 1 . . overwrite_iff 1 | . . . . . . . . . . . . . 1 . . formatsys_low 1 | . . . . . . . . . . 1 . . . . . formatsys_high 3 | . . . . . . . . . . . . . 3 . . Relay Couplers Released 26 | . . . . . 3 . 12 . 11 . . . . . . Machine Destruction 26 | . . . . . 3 . 12 . 11 . . . . . . Attached 4 | . . . . . . . . . 2 . . 1 1 . . Fabnet Peak Effective % . | . . . . . . . . . . . . . . . . Robots Rewired 10 | . . . . . 3 . . . . . . . 7 . . Allies Hacked . | . . . . . . . . . . . . . . . . Hacks Repelled . | . . . . . . . . . . . . . . . . Allies | -11 -10 -10 -9 -9 -9 -8 -8 -7 -7 -6 -6 -6 -6 -6 -6 -------- Run | Scr Mat Min Mat Sto Gar Mat Gar Fac Gar Fac Was Fac Ext Cet Arc Total Allies 35 | . . 3 . . 4 . 1 . 2 1 1 . 18 5 . Largest Group 8 | . . 3 3 . 4 4 1 1 2 2 3 1 8 6 5 Highest-Rated Group 623 | . . 40 40 . 49 49 146 146 146 142 168 26 256 623 527 Highest-Rated Ally 159 | . . 16 16 . 25 25 146 146 146 80 80 26 159 159 143 Total Orders . | . . . . . . . . . . . . . . . . Ally Attacks 420 | . . . 43 . 1 30 . 10 19 3 43 . 171 83 17 Total Damage 11795 | . . . 463 . 41 206 . 621 802 118 2124 . 4145 2725 550 Kills 78 | . . . 8 . . 4 . 6 11 1 4 . 27 15 2 Allies Corrupted . | . . . . . . . . . . . . . . . . Allies Melted . | . . . . . . . . . . . . . . . . Intel | -11 -10 -10 -9 -9 -9 -8 -8 -7 -7 -6 -6 -6 -6 -6 -6 ------- Run | Scr Mat Min Mat Sto Gar Mat Gar Fac Gar Fac Was Fac Ext Cet Arc Robot Analysis Total 1 | . . . 1 . . . . . . . . . . . . Derelict Logs Recovered . | . . . . . . . . . . . . . . . . Drone Launches . | . . . . . . . . . . . . . . . . Drone Recoveries . | . . . . . . . . . . . . . . . . Exploration | -11 -10 -10 -9 -9 -9 -8 -8 -7 -7 -6 -6 -6 -6 -6 -6 ------------- Run | Scr Mat Min Mat Sto Gar Mat Gar Fac Gar Fac Was Fac Ext Cet Arc Turns Passed 12751 | 70 833 281 1714 259 1175 1370 1327 764 1242 173 222 1010 1606 665 40 Spaces Moved 6464 | 57 570 247 792 87 628 645 532 332 521 101 112 659 828 338 15 Core 12 | 1 . . . . . . . . 5 . . . 6 . . Treads 3899 | 1 . . 276 87 628 645 532 332 516 101 112 248 91 315 15 Legs 162 | . . . . . . . . . . . . . 139 23 . Wheels 1597 | 55 570 247 516 . . . . . . . . . 209 . . Hover 794 | . . . . . . . . . . . . 411 383 . . Flight . | . . . . . . . . . . . . . . . . Fastest Speed 50 | 50 95 110 120 160 160 160 160 163 160 160 160 56 58 160 160 Average Speed 155 | 87 105 110 175 215 160 166 189 225 194 160 160 116 125 162 160 Slowest Speed 1200 | 160 110 110 320 240 240 240 240 243 1100 160 160 240 1200 240 160 Overloaded Moves . | . . . . . . . . . . . . . . . . Propulsion Burnouts . | . . . . . . . . . . . . . . . . Robots Hopped . | . . . . . . . . . . . . . . . . Cave-ins Triggered . | . . . . . . . . . . . . . . . . Exploration Rate (%) 49 | 3 79 57 57 13 73 72 65 7 69 3 82 16 86 62 45 Regions Visited 15 Branch Regions 5 Pre-discovered Areas 5 | . 1 1 1 . . 2 . . . . . . . . . Known Exits Taken 4 | . . . 1 1 . 1 . 1 . . . . . . . Unknown Exits Taken 6 | 1 1 1 . . . . . . . . . 1 1 1 . Scrap Searched 1 | . . 1 . . . . . . . . . . . . . Spaces Dug 23 | . . . . . . . 8 . 11 . . 3 1 . . Terrain Destroyed 176 | . 2 . . . 44 76 13 . 14 . 5 9 4 3 6 Melee 7 | . . . . . . . . . 3 . . 3 1 . . Projectile 21 | . . . . . . . . . 1 . 5 3 3 3 6 AOE 148 | . 2 . . . 44 76 13 . 10 . . 3 . . . Terrain Rammed . | . . . . . . . . . . . . . . . . Walls Destroyed . | . . . . . . . . . . . . . . . . Machines Disabled . | . . . . . . . . . . . . . . . . Actions | -11 -10 -10 -9 -9 -9 -8 -8 -7 -7 -6 -6 -6 -6 -6 -6 --------- Run | Scr Mat Min Mat Sto Gar Mat Gar Fac Gar Fac Was Fac Ext Cet Arc Total 8117 | 73 702 252 993 144 722 815 694 345 640 109 139 816 1238 415 20 Wait 420 | . 51 1 49 38 10 9 9 . 12 . 8 11 212 10 . Move 6452 | 56 569 246 791 87 627 645 531 331 520 101 111 658 827 337 15 Hop . | . . . . . . . . . . . . . . . . Pick Up 138 | 6 14 1 21 2 1 17 17 2 10 . 1 15 19 12 . Fast Attach 85 | 6 5 . 8 1 1 7 2 5 9 . 1 10 21 9 . Attach 65 | 2 . . 4 1 . 7 10 . 5 2 . 19 14 1 . Detach 13 | 1 . . 1 . . 1 1 . . . . 7 2 . . Swap 101 | . 3 1 13 2 9 26 9 . 6 3 1 6 16 6 . Drop 142 | 1 8 1 33 3 2 24 12 5 12 . 2 12 10 17 . Fire 480 | 1 52 2 72 10 47 77 53 2 27 1 15 30 66 20 5 Melee 143 | . . . . . . . 40 . 37 2 . 25 36 3 . Ram . | . . . . . . . . . . . . . . . . Kick . | . . . . . . . . . . . . . . . . Crush 6 | . . . 1 . . 2 . . 2 . . . 1 . . Escape Stasis 46 | . . . . . . . 10 . . . . 23 13 . . Rewire 26 | . . . . . 25 . . . . . . . 1 . . Trap . | . . . . . . . . . . . . . . . . Miscellaneous . | . . . . . . . . . . . . . . . . Route ------- -11/Scrapyard -10/Materials (discovered 4 exits: *Mat x3 / [*Min]) -10/Mines -9/Materials (discovered 3 exits: *Min x2 / *Sto) -9/Storage -9/Garrison (discovered 3 exits: *Mat x3) -8/Materials -8/Garrison (discovered 4 exits: *Fac x3 / [Mat]) -7/Factory -7/Garrison (discovered 2 exits: *Fac x2) -6/Factory -6/Waste -6/Factory -6/Extension (discovered 2 exits: [*Fac] / *Cet) -6/Cetus (discovered 2 exits: [*Fac] / [*Arc]) -6/Archives History --------- Turn | Location | Event 6 | -11/Scrapyard | Discovered new exit (range 16) 71 | -11/Scrapyard | Entered Materials 310 | -10/Materials | Build established: Mutant 372 | -10/Materials | Discovered new exit (range 9) 512 | -10/Materials | Discovered new exit (range 10) 572 | -10/Materials | Discovered new exit (range 11) 739 | -10/Materials | Discovered new exit (range 8) 904 | -10/Materials | Entered Mines 1061 | -10/Mines | A weapon hastily lodged in a ceiling crevice suddenly fell to the ground 1129 | -10/Mines | Learned location of Storage (-9) 1171 | -10/Mines | Discovered new exit (range 10) 1183 | -10/Mines | Assisted by bots powering up and referring to "LRC-V3" 1185 | -10/Mines | Entered Materials 1185 | -9/Materials | Accompanied by 3 allies 1185 | -9/Materials | Evolved 2 slots: Utility x1, Weapon x1 1186 | -9/Materials | Discovered new exit (range 15) 1232 | -9/Materials | Identified exit to Mines 1232 | -9/Materials | Identified exit to Storage 1643 | -9/Materials | Build established: Scavenger-Gunner 2147 | -9/Materials | Build established: Scavenger-Mutant 2701 | -9/Materials | Build established: Tank 2899 | -9/Materials | Entered Storage 2969 | -9/Storage | Repaired Lgt. Nuclear Core 3158 | -9/Storage | Identified exit to Garrison 3158 | -9/Storage | Entered Garrison 3176 | -9/Garrison | Triggered checkpoint 3204 | -9/Garrison | Triggered checkpoint 3217 | -9/Garrison | Garrison Relay disabled 3364 | -9/Garrison | Triggered checkpoint 3414 | -9/Garrison | Triggered checkpoint 3477 | -9/Garrison | Discovered new exit (range 12) 3603 | -9/Garrison | Triggered checkpoint 3658 | -9/Garrison | Triggered checkpoint 3716 | -9/Garrison | Triggered checkpoint 3800 | -9/Garrison | Triggered checkpoint 3845 | -9/Garrison | Core integrity fell below 50% 3915 | -9/Garrison | Discovered new exit (range 12) 4085 | -9/Garrison | Installed Relay Interface Framework 4118 | -9/Garrison | Rescued a captive Derelict 4158 | -9/Garrison | Triggered checkpoint 4210 | -9/Garrison | Discovered new exit (range 10) 4226 | -9/Garrison | Triggered checkpoint 4333 | -9/Garrison | Entered Materials 4333 | -8/Materials | Accompanied by 4 allies 4333 | -8/Materials | Evolved 2 slots: Propulsion x1, Utility x1 4473 | -8/Materials | Repaired Hrd. Medium Armor Plating? 4536 | -8/Materials | Repaired Minigun 4848 | -8/Materials | Destroyed 7 combat bots 5133 | -8/Materials | First assault squad dispatched 5557 | -8/Materials | Garrison activated, responded to threat 5603 | -8/Materials | Destroyed 8 combat bots 5703 | -8/Materials | Identified exit to Garrison 5703 | -8/Materials | Entered Garrison 5806 | -8/Garrison | Triggered checkpoint 5859 | -8/Garrison | Garrison Relay disabled 5918 | -8/Garrison | Triggered checkpoint 6050 | -8/Garrison | Triggered checkpoint 6212 | -8/Garrison | Triggered checkpoint 6271 | -8/Garrison | Learned Factory security intel 6317 | -8/Garrison | Garrison Relay disabled 6347 | -8/Garrison | Build established: Scavenger-Mutant 6368 | -8/Garrison | Discovered new exit (range 7) 6368 | -8/Garrison | Discovered new exit (range 70) 6368 | -8/Garrison | Discovered new exit (range 82) 6368 | -8/Garrison | Discovered new exit (range 42) 6462 | -8/Garrison | Triggered checkpoint 6564 | -8/Garrison | Lost 4 parts (1n1u2w) 6664 | -8/Garrison | Triggered checkpoint 6698 | -8/Garrison | Core integrity fell below 50% 6748 | -8/Garrison | Expanded RIF knowledge: Zone Cloak 6768 | -8/Garrison | Garrison Relay disabled 7022 | -8/Garrison | Rescued HV-R5K 7030 | -8/Garrison | Entered Factory 7030 | -7/Factory | Accompanied by 1 ally (HV-R5K) 7030 | -7/Factory | Evolved 2 slots: Utility x2 7060 | -7/Factory | Identified exit to Garrison 7430 | -7/Factory | First assault squad dispatched 7794 | -7/Factory | Entered Garrison 7794 | -7/Garrison | Accompanied by 1 ally (HV-R5K) 7840 | -7/Garrison | Triggered checkpoint 7875 | -7/Garrison | Garrison Relay disabled 8196 | -7/Garrison | Triggered checkpoint 8233 | -7/Garrison | Destroyed HV-R5K 8288 | -7/Garrison | Lost 4 parts (1p2n1w) 8569 | -7/Garrison | Discovered new exit (range 12) 8582 | -7/Garrison | Triggered checkpoint 8654 | -7/Garrison | Garrison Relay disabled 8792 | -7/Garrison | Triggered checkpoint 8838 | -7/Garrison | Found embedded Infiltrators 8858 | -7/Garrison | Triggered checkpoint 8889 | -7/Garrison | Discovered new exit (range 15) 8919 | -7/Garrison | Expanded RIF knowledge: Signal Jamming 8956 | -7/Garrison | Build established: Bothacker-Mutant 8978 | -7/Garrison | Garrison Relay disabled 9036 | -7/Garrison | Entered Factory 9036 | -6/Factory | Accompanied by 2 allies 9036 | -6/Factory | Evolved 2 slots: Power x1, Propulsion x1 9209 | -6/Factory | Sucked down chute 9209 | -6/Factory | Entered Waste 9209 | -6/Waste | Met up with 1 ally sucked down the chute earlier 9224 | -6/Waste | EMP discharged 9235 | -6/Waste | 1 allies followed down the chute 9253 | -6/Waste | Spotted C-40 Crusher 9255 | -6/Waste | 1 allies followed down the chute 9265 | -6/Waste | Spotted C-40 Crusher 9271 | -6/Waste | Allies destroyed C-40 Crusher 9273 | -6/Waste | Spotted C-40 Crusher 9279 | -6/Waste | Spotted C-40 Crusher 9283 | -6/Waste | Spotted C-40 Crusher 9287 | -6/Waste | Allies destroyed C-40 Crusher 9296 | -6/Waste | Allies destroyed C-40 Crusher 9324 | -6/Waste | EMP discharged 9324 | -6/Waste | System corruption reached 10% 9340 | -6/Waste | Allies destroyed C-40 Crusher 9347 | -6/Waste | Spotted C-40 Crusher 9366 | -6/Waste | Destroyed C-40 Crusher 9407 | -6/Waste | Discovered new exit (range 15) 9424 | -6/Waste | EMP discharged 9431 | -6/Waste | Entered Factory 9431 | -6/Factory | Accompanied by 1 ally 9625 | -6/Factory | Lost 10 parts (1p2n2u5w) 10143 | -6/Factory | Build established: Mutant 10429 | -6/Factory | Discovered new exit (range 16) 10441 | -6/Factory | Entered Extension 10445 | -6/Extension | Lost 3 parts (3p) 10616 | -6/Extension | Core integrity fell below 50% 10635 | -6/Extension | Rescued a captive Derelict 10706 | -6/Extension | Door terminal overloaded 10745 | -6/Extension | Rescued a captive Derelict 10749 | -6/Extension | Rescued a captive Derelict 10798 | -6/Extension | Build established: Commander-Mutant 11066 | -6/Extension | Disrupted transfer network 11171 | -6/Extension | Spotted B-75 Beast 11187 | -6/Extension | Spotted B-75 Beast 11199 | -6/Extension | Allies destroyed B-75 Beast 11231 | -6/Extension | Allies destroyed B-75 Beast 11264 | -6/Extension | Lost 4 parts (1p1n1u1w) 11366 | -6/Extension | Lost 3 parts (2n1w) 11461 | -6/Extension | Rescued a captive Derelict 11642 | -6/Extension | Build established: Scavenger-Mutant 11661 | -6/Extension | Core integrity fell below 20% 11715 | -6/Extension | Lost 11 parts (2p3n3u3w) 11883 | -6/Extension | Rescued a captive Derelict 11883 | -6/Extension | Rescued a captive Derelict 11995 | -6/Extension | Rescued A7 12033 | -6/Extension | Discovered new exit (range 10) 12035 | -6/Extension | Discovered new exit (range 6) 12047 | -6/Extension | Entered Cetus 12047 | -6/Cetus | Accompanied by 1 ally (A7) 12052 | -6/Cetus | Acquired a Cetus Manufacturing Module code from A7 12072 | -6/Cetus | Spotted Cetus Guard 12072 | -6/Cetus | Spotted Cetus Guard 12075 | -6/Cetus | Spotted Cetus Guard 12091 | -6/Cetus | Allies destroyed Cetus Guard 12091 | -6/Cetus | Destroyed Cetus Guard 12091 | -6/Cetus | Spotted Cetus Guard 12097 | -6/Cetus | Allies destroyed Cetus Guard 12104 | -6/Cetus | Destroyed Cetus Guard 12130 | -6/Cetus | System corruption reached 30% 12215 | -6/Cetus | Started Cetus Manufacturing Module 12240 | -6/Cetus | Manufactured an Enhanced Grunt 12265 | -6/Cetus | Manufactured an Enhanced Grunt 12290 | -6/Cetus | Manufactured an Enhanced Grunt 12315 | -6/Cetus | Manufactured an Enhanced Grunt 12337 | -6/Cetus | Discovered new exit (range 16) 12340 | -6/Cetus | Manufactured an Enhanced Grunt 12366 | -6/Cetus | Spotted Cetus Guard 12367 | -6/Cetus | Spotted Cetus Guard 12370 | -6/Cetus | Spotted Cetus Guard 12370 | -6/Cetus | Spotted Cetus Guard 12374 | -6/Cetus | Allies destroyed Cetus Guard 12376 | -6/Cetus | Destroyed Cetus Guard 12384 | -6/Cetus | Discovered new exit (range 16) 12389 | -6/Cetus | Allies destroyed Cetus Guard 12394 | -6/Cetus | Allies destroyed Cetus Guard 12398 | -6/Cetus | Met Revision 17 12549 | -6/Cetus | Cetus Manufacturing Module disabled 12712 | -6/Cetus | Entered Archives 12712 | -6/Archives | Accompanied by 6 allies (A7) 12752 | -6/Archives | Destroyed by Y-64 Sentinel with KE Penetrator Last Messages --------------- 12737_ Penetrated by Slug. 12738_ E EJWFW VECTGZ%ZUDA & QLKCBQ#L|GP48D 12739_ Penetrated by Slug. 12740_ Slug penetrates Y-64 Sentinel. 12741_ Penetrated by Slug. 12743_ Archive Hub disabled. 12743_ Y-64 Sentinel destroyed. 12746_ Slug penetrates O-32 Director. 12746_ Destroyed Imp. System Restoration Module. 12746_ Slug penetrates Archive Hub. 12746_ Slug penetrates Wall. 12747_ Slug penetrates Archive Hub. 12747_ Critical hit (Burn: +37). 12748_ Slug penetrates Enhanced Grunt. 12749_ Slug penetrates Wall. 12749_ Slug penetrates Y-64 Sentinel. 12750_ Slug penetrates Archive Hub. 12751_ Slug penetrates Enhanced Grunt. 12751_ Enhanced Grunt destroyed. 12752_ Penetrated by Slug. Map ----- +----------------------------------------------------+ | | | | | | | | | | | ?????????????????????????????????????????? | | ?????????????????????????????????????????? | | ?????????????????????????????????????????? | | ?????????????????????????????????????????? | | ?????????????????????????????????????????? | | ?????????????????????????????????????????? | | ?????????????????????????????????????????? | | ?????????????????????????????????????????? | | ?????????????????????????????????????????? | | ?????????????????????????????????????????? | | ?????????????????????????????????????????? | | ?????????????????????????????????????????? | | ??????????????????##"#?###???????????????? | | ??????????????????"""""""#???????????????? | | ??????????????????"""V"""#???????????????? | | ?????????????????? "" ""#?? ##??????????? | | ????????##??###### ""# ;##?????????? | | ??#######;###;#*# %=;?????????? | | ??# !%! ""?????????? | | ??# o !!%! o "?????????? | | ??# !%! @ g o "?????????? | | ??#####/#####;### !%! V????????? | | ????? ?????? g ! "?????????? | | ???? ???? ""?????????? | | ??? """"??" "??????????? | | ??#"""""""""#"? o #??????????? | | ??#""""""""""?"" ??????????? | | ??#"""""""""#?"" ??????????? | | ???""""""""??"" "Y ???????????? | | ??????????????### Y???????????? | | ?????????????????; #" ""????????????? | | ?????????????????# #""" ""?????????????? | | ?????????????????? ;???V"??????????????? | | ?????????????????? #???????????????????? | | ?????????????????? #???????????????????? | | ?????????????????? ?????????????????????? | | ?????????????????????????????????????????? | | ?????????????????????????????????????????? | | ?????????????????????????????????????????? | | ?????????????????????????????????????????? | | ?????????????????????????????????????????? | | ?????????????????????????????????????????? | | ?????????????????????????????????????????? | | ?????????????????????????????????????????? | | ?????????????????????????????????????????? | +----------------------------------------------------+ Best States ------------- Heat Dissipation 64 Energy Generation 38 Energy Capacity 535 Matter Stores 426 Matter Capacity 450 Sight Range 16 Terrain Scan Range 24 Terrain Scan Density 10 Jamming Range 16 Armor Coverage 600 Resistance: EX 25 Melee Speed Boost 20 Evasion (%) 53 Targeting Accuracy 5 Recoil Reduction 4 Salvage Targeting 1 Offensive Hacking 12 Relay Coupler Types 3 Relay Coupler Value 73 Authchip Count 1 Item Schematics ----------------- Hvy. Mass Driver | -6/Factory | Hacked Robot Schematics ------------------ None Fabricated ------------ Nothing Alien Tech Used ----------------- None Achievements -------------- Just Shoot The Terminal Challenges ------------ None Game ------ Seed GuidedBombShielding Manual? 0 Play Time 01:53:53 Cumulative 164.1 hours Start 2022.12.22 @ 11:35:24 End 2022.12.22 @ 13:32:21 Sessions 1 Manual Loads 0 Difficulty Rogue Special Mode None Game No. 251 Rogue 251 Adventurer 0 Explorer 0 Win Type - Total 3 Types 1/0/2/0/0/0/0/0/0 Lore% 68 Gallery% 77 Achievement% 58 Wizard Run 0 Options --------- ASCII 0 Keyboard 0 Movement Numpad Keybinds 0 Fullscreen 1 Font 18/SmallcapsGlow Map View 76x50 Tactical HUD 1 Map Filters NONE Filters NONE Steam 1 RUN: 94af400a-1ce0-46a9-85d9-f6a992027f29